fUSD/lending_fUSD_20250611
["ID","MTS","AMOUNT","RATE_DAILY","PERIOD"]
[365369029,1749621047995,-490.0,0.00016767,2]
[365369031,1749621048006,-490.0,0.00016767,2]
[365369033,1749621048015,-318.13758946,0.00016767,2]
[365369035,1749621048025,-490.0,0.00016767,2]
[365369037,1749621048034,-490.0,0.00016767,2]
[365369039,1749621048043,-276.18801149,0.00016767,2]
[365369041,1749621048052,-150.15,0.00016767,2]
[365369043,1749621048062,-490.0,0.00016767,2]
[365369045,1749621048072,-490.0,0.00016767,2]
[365369047,1749621048081,-490.0,0.00016767,2]
[365369049,1749621048091,-490.0,0.00016767,2]
[365369051,1749621048101,-490.0,0.00016767,2]
[365369053,1749621048111,-490.0,0.00016767,2]
[365369055,1749621048119,-490.0,0.00016767,2]
[365369057,1749621048129,-490.0,0.00016767,2]
[365369059,1749621048139,-235.79,0.00016767,2]
[365369060,1749621048148,-490.0,0.00016767,2]
[365369061,1749621048157,-490.0,0.00016767,2]
[365369062,1749621048166,-490.0,0.00016767,2]
[365369063,1749621048175,-490.0,0.00016767,2]
[365369064,1749621048184,-439.91494795,0.00016767,2]
[365369065,1749621048194,-355.34013731,0.00016767,2]
[365369066,1749621048203,-490.0,0.00016767,2]
[365369067,1749621048212,-490.0,0.00016767,2]
[365369068,1749621048221,-469.30547941,0.00016767,2]
[365369069,1749621048230,-577.2548952,0.00016767,2]
[365369071,1749621048239,-490.0,0.00016767,2]
[365369073,1749621048249,-490.0,0.00016767,2]
[365369075,1749621048258,-490.0,0.00016767,2]
[365369076,1749621048267,-476.04717764,0.00016767,2]
[365369077,1749621048317,-490.0,0.00016767,2]
[365369078,1749621048326,-490.0,0.00016767,2]
[365369079,1749621048336,-490.0,0.00016767,2]
[365369080,1749621048345,-254.59,0.00016767,2]
[365369081,1749621048355,-470.0,0.00016767,2]
[365369082,1749621048364,-490.0,0.00016767,2]
[365369083,1749621048373,-490.0,0.00016767,2]
[365369084,1749621048382,-490.0,0.00016767,2]
[365369085,1749621048392,-261.88869211,0.00016767,2]
[365369086,1749621048401,-490.0,0.00016767,2]
[365369087,1749621048410,-479.28971529,0.00016767,2]
[365369088,1749621048419,-490.0,0.00016767,2]
[365369089,1749621048428,-490.0,0.00016767,2]
[365369090,1749621048438,-308.1620866,0.00016767,2]
[365369091,1749621048447,-490.0,0.00016767,2]
[365369092,1749621048457,-490.0,0.00016767,2]
[365369093,1749621048466,-185.6,0.00016767,2]
[365369095,1749621048475,-490.0,0.00016767,2]
[365369097,1749621048485,-490.0,0.00016767,2]
[365369099,1749621048494,-614.51448417,0.00016767,2]
[365369100,1749621048504,-338.04366019,0.00016767,2]
[365369101,1749621048513,-490.0,0.00016767,2]
[365369102,1749621048522,-490.0,0.00016767,2]
[365369103,1749621048532,-2512.63,0.00016767,2]
[365369104,1749621048541,-483.23556927,0.00016767,2]
[365369105,1749621048551,-490.0,0.00016767,2]
[365369106,1749621048560,-490.0,0.00016767,2]
[365369108,1749621048570,-490.0,0.00016767,2]
[365369110,1749621048580,-490.0,0.00016767,2]
[365369112,1749621048589,-490.0,0.00016767,2]
[365369114,1749621048599,-490.0,0.00016767,2]
[365369115,1749621048608,-490.0,0.00016767,2]
[365369117,1749621048617,-490.0,0.00016767,2]
[365369118,1749621048626,-490.0,0.00016767,2]
[365369119,1749621048636,-582.31640039,0.00016767,2]
[365369120,1749621048646,-543.61943304,0.00016767,2]
[365369121,1749621048655,-516.27292348,0.00016767,2]
[365369122,1749621048665,-599.66,0.00016767,2]
[365369123,1749621048674,-490.0,0.00016767,2]
[365369124,1749621048683,-2291.25,0.00016767,2]
[365369125,1749621048692,-187.02389737,0.00016767,2]
[365369126,1749621048702,-269.12431589,0.00016767,2]
[365369127,1749621048712,-490.0,0.00016767,2]
[365369128,1749621048721,-566.79,0.00016767,2]
[365369129,1749621048731,-490.0,0.00016767,2]
[365369130,1749621048740,-534.36,0.00016767,2]
[365369131,1749621048750,-490.0,0.00016767,2]
[365369132,1749621048760,-480.0,0.00016767,2]
[365369133,1749621048769,-490.0,0.00016767,2]
[365369134,1749621048778,-576.39,0.00016767,2]
[365369135,1749621048788,-490.0,0.00016767,2]
[365369136,1749621048797,-150.0,0.00016794,2]
[365369137,1749621048806,-150.0,0.00016821,2]
[365369138,1749621048815,-1634.20745901,0.0001683,2]
[365369139,1749621048824,-200.0,0.00016849,2]
[365369140,1749621048834,-280.99,0.00016931,2]
[365369141,1749621048843,-490.0,0.00016931,2]
[365369142,1749621048852,-162.66,0.00016931,2]
[365369143,1749621048887,-480.67870847,0.00016931,2]
[365369144,1749621048896,-452.8,0.00016931,2]
[365369145,1749621048905,-633.4,0.00016931,2]
[365369146,1749621048914,-490.0,0.00016931,2]
[365369147,1749621048923,-490.0,0.00016931,2]
[365369148,1749621048933,-490.0,0.00016931,2]
[365369149,1749621048943,-490.0,0.00016931,2]
[365369150,1749621048951,-233.83,0.00016931,2]
[365369151,1749621048961,-168.1416723,0.00016931,2]
[365369152,1749621048971,-490.0,0.00016931,2]
[365369153,1749621048982,-204.64,0.00016931,2]
[365369154,1749621048991,-638.66105729,0.00016931,2]
[365369155,1749621048999,-490.0,0.00016931,2]
[365369156,1749621049010,-490.0,0.00016931,2]
[365369157,1749621049020,-490.0,0.00016931,2]
[365369158,1749621049029,-534.71900584,0.00016931,2]
[365369159,1749621049039,-490.0,0.00016931,2]
[365369160,1749621049048,-557.63,0.00016931,2]
[365369161,1749621049057,-490.0,0.00016931,2]
[365369162,1749621049067,-490.0,0.00016931,2]
[365369163,1749621049077,-490.0,0.00016931,2]
[365369164,1749621049086,-187.04557064,0.00016931,2]
[365369165,1749621049095,-490.0,0.00016931,2]
[365369166,1749621049105,-490.0,0.00016931,2]
[365369167,1749621049114,-209.37563099,0.00016931,2]
[365369168,1749621049123,-256.22,0.00016931,2]
[365369169,1749621049132,-303.08114491,0.00016931,2]
[365369170,1749621049141,-277.27834861,0.00016931,2]
[365369171,1749621049150,-172.77778793,0.00016931,2]
[365369172,1749621049159,-490.0,0.00016931,2]
[365369173,1749621049168,-490.0,0.00016931,2]
[365369174,1749621049177,-490.0,0.00016931,2]
[365369175,1749621049187,-490.0,0.00016931,2]
[365369176,1749621049196,-490.0,0.00016931,2]
[365369177,1749621049205,-300.81,0.00016931,2]
[365369178,1749621049215,-490.0,0.00016931,2]
[365369179,1749621049224,-490.0,0.00016931,2]
[365369180,1749621049234,-490.0,0.00016931,2]
[365369181,1749621049243,-470.0,0.00016931,2]
[365369182,1749621049252,-505.53455056,0.00016931,2]
[365369183,1749621049262,-282.54800771,0.00016931,2]
[365369184,1749621049271,-2512.63,0.00016931,2]
[365369185,1749621049281,-490.0,0.00016931,2]
[365369186,1749621049290,-490.0,0.00016931,2]
[365369187,1749621049299,-490.0,0.00016931,2]
[365369188,1749621049308,-187.02,0.00016931,2]
[365369189,1749621049318,-490.0,0.00016931,2]
[365369190,1749621049327,-490.0,0.00016931,2]
[365369191,1749621049337,-490.0,0.00016931,2]
[365369192,1749621049347,-490.0,0.00016931,2]
[365369193,1749621049361,-599.66,0.00016931,2]
[365369194,1749621049370,-490.0,0.00016931,2]
[365369195,1749621049380,-2291.25,0.00016931,2]
[365369196,1749621049389,-490.0,0.00016931,2]
[365369197,1749621049399,-523.41,0.00016931,2]
[365369198,1749621049408,-417.24900552,0.00016931,2]
[365369199,1749621049418,-581.15039923,0.00016946,2]
[365369200,1749621049427,-150.0,0.00016947,2]
[365369201,1749621049437,-833.29909032,0.00016998,2]
[365369202,1749621049447,-384.0534023,0.00017076,2]
[365369203,1749621049457,-489.13739508,0.00017095,2]
[365369204,1749621049466,-455.76796367,0.00017095,2]
[365369205,1749621049475,-490.0,0.00017095,2]
[365369206,1749621049484,-490.0,0.00017095,2]
[365369207,1749621049493,-444.37,0.00017095,2]
[365369208,1749621049503,-490.0,0.00017095,2]
[365369209,1749621049513,-490.0,0.00017095,2]
[365369210,1749621049522,-490.0,0.00017095,2]
[365369211,1749621049532,-490.0,0.00017095,2]
[365369212,1749621049541,-490.0,0.00017095,2]
[365369213,1749621049551,-490.0,0.00017095,2]
[365369214,1749621049560,-490.0,0.00017095,2]
[365369215,1749621049570,-490.0,0.00017095,2]
[365369216,1749621049580,-489.3,0.00017095,2]
[365369217,1749621049589,-490.0,0.00017095,2]
[365369218,1749621049599,-2512.63,0.00017095,2]
[365369219,1749621049609,-490.0,0.00017095,2]
[365369220,1749621049618,-490.0,0.00017095,2]
[365369221,1749621049627,-490.0,0.00017095,2]
[365369222,1749621049637,-490.0,0.00017095,2]
[365369223,1749621049646,-192.71,0.00017095,2]
[365369224,1749621049655,-490.0,0.00017095,2]
[365369225,1749621049665,-490.0,0.00017095,2]
[365369226,1749621049675,-599.66,0.00017095,2]
[365369227,1749621049684,-2291.25,0.00017095,2]
[365369228,1749621049693,-490.0,0.00017095,2]
[365369229,1749621049702,-715.49769219,0.0001713,2]
[365369230,1749621049712,-1000.0,0.00017183,2]
[365369231,1749621049721,-490.0,0.0001726,2]
[365369232,1749621049731,-490.0,0.0001726,2]
[365369233,1749621049740,-368.98,0.0001726,2]
[365369234,1749621049749,-490.0,0.0001726,2]
[365369235,1749621049759,-490.0,0.0001726,2]
[365369236,1749621049768,-490.0,0.0001726,2]
[365369237,1749621049777,-490.0,0.0001726,2]
[365369238,1749621049787,-345.29,0.0001726,2]
[365369239,1749621049796,-631.83,0.0001726,2]
[365369240,1749621049805,-2512.63,0.0001726,2]
[365369241,1749621049815,-490.0,0.0001726,2]
[365369242,1749621049824,-514.16,0.0001726,2]
[365369243,1749621049833,-599.66,0.0001726,2]
[365369244,1749621049842,-2291.25,0.0001726,2]
[365369245,1749621049852,-490.0,0.0001726,2]
[365369246,1749621049861,-23900.0,0.00017313,2]
[365369247,1749621049870,-500.0,0.00017423,2]
[365369248,1749621049879,-500.0,0.00017423,2]
[365369249,1749621049889,-490.0,0.00017424,2]
[365369250,1749621049898,-490.0,0.00017424,2]
[365369251,1749621049907,-490.0,0.00017424,2]
[365369252,1749621049916,-490.0,0.00017424,2]
[365369253,1749621049926,-490.0,0.00017424,2]
[365369254,1749621049939,-490.0,0.00017424,2]
[365369255,1749621049949,-2512.63,0.00017424,2]
[365369256,1749621049958,-490.0,0.00017424,2]
[365369257,1749621049968,-599.66,0.00017424,2]
[365369258,1749621049978,-2291.25,0.00017424,2]
[365369259,1749621049987,-490.0,0.00017424,2]
[365369260,1749621049997,-204.0,0.00017504,3]
[365369261,1749621050006,-715.49769219,0.00017525,2]
[365369262,1749621050016,-152.0,0.00017568,4]
[365369263,1749621050026,-490.0,0.00017589,2]
[365369264,1749621050035,-490.0,0.00017589,2]
[365369265,1749621050044,-490.0,0.00017589,2]
[365369266,1749621050053,-225.12,0.00017589,2]
[365369267,1749621050063,-236.36,0.00017589,2]
[365369268,1749621050072,-490.0,0.00017589,2]
[365369269,1749621050081,-2512.63,0.00017589,2]
[365369270,1749621050090,-490.0,0.00017589,2]
[365369271,1749621050101,-599.66,0.00017589,2]
[365369272,1749621050110,-2291.25,0.00017589,2]
[365369273,1749621050119,-490.0,0.00017589,2]
[365369274,1749621050129,-165.23,0.00017652,2]
[365369275,1749621050138,-300.0,0.0001767,2]
[365369276,1749621050147,-600.0,0.0001767,4]
[365369277,1749621050156,-420.0,0.00017717,2]
[365369278,1749621050165,-490.0,0.00017753,2]
[365369279,1749621050175,-490.0,0.00017753,2]
[365369280,1749621050184,-306.48808641,0.00017753,2]
[365369281,1749621050193,-2512.63,0.00017753,2]
[365369282,1749621050203,-594.18047044,0.00017753,2]
[365369283,1749621050212,-599.66,0.00017753,2]
[365369284,1749621050221,-2291.25,0.00017753,2]
[365369285,1749621050231,-490.0,0.00017753,2]
[365369286,1749621050240,-250.0,0.0001778,2]
[365369287,1749621050250,-1680.0,0.00017806,2]
[365369288,1749621050259,-160.7304198,0.000179,2]
[365369289,1749621050269,-209.91667358,0.000179,2]
[365369290,1749621050278,-366.77,0.00017917,2]
[365369291,1749621050288,-234.14589928,0.00017917,2]
[365369292,1749621050298,-2512.63,0.00017917,2]
[365369293,1749621050307,-599.66,0.00017917,2]
[365369294,1749621050316,-2291.25,0.00017917,2]
[365369295,1749621050326,-490.0,0.00017917,2]
[365369296,1749621050335,-715.49769219,0.00017921,2]
[365369297,1749621050345,-209.91667347,0.00017969,2]
[365369298,1749621050355,-150.82,0.00018,2]
[365369299,1749621050364,-150.82,0.00018,2]
[365369300,1749621050374,-11640.39885314,0.00018,2]
[365369301,1749621050587,-341.10151966,0.00018,2]
[365369302,1749621050695,-247.50021735,0.00018,2]
[365369303,1749621050707,-2188.6,0.00018,2]
[365369304,1749621050860,-547.18089662,0.00016338,2]
[365369305,1749621050871,-155.23834838,0.00016338,2]
[365369306,1749621050882,-38022.23755162,0.00016338,2]
[365369307,1749621050892,-501.01,0.00016338,2]
[365369308,1749621050903,-304.22,0.00016338,2]
[365369309,1749621050913,-261076.94658437,0.00018,2]
[365369310,1749621050923,-209.91667347,0.00018038,2]
[365369311,1749621050933,-2512.63,0.00018082,2]
[365369312,1749621050943,-599.66,0.00018082,2]
[365369313,1749621050953,-2291.25,0.00018082,2]
[365369314,1749621050963,-186.09379901,0.00018082,2]
[365369315,1749621050973,-209.91667347,0.00018107,2]
[365369316,1749621050985,-209.91667347,0.00018176,2]
[365369317,1749621050994,-209.91667347,0.00018245,2]
[365369318,1749621051004,-2512.63,0.00018246,2]
[365369319,1749621051015,-599.66,0.00018246,2]
[365369320,1749621051025,-2291.25,0.00018246,2]
[365369321,1749621051035,-584.58,0.00018268,2]
[365369322,1749621051044,-209.91667347,0.00018314,2]
[365369323,1749621051054,-715.49769219,0.00018317,2]
[365369324,1749621051064,-163.35,0.00018356,2]
[365369325,1749621051074,-163.35,0.00018356,2]
[365369326,1749621051084,-163.35,0.00018356,2]
[365369327,1749621051095,-163.35,0.00018356,2]
[365369328,1749621051105,-163.1,0.00018356,2]
[365369329,1749621051115,-209.91667347,0.00018383,2]
[365369330,1749621051127,-2512.63,0.0001841,2]
[365369331,1749621051140,-599.66,0.0001841,2]
[365369332,1749621051151,-2291.25,0.0001841,2]
[365369333,1749621051161,-209.91667347,0.00018452,2]
[365369334,1749621051170,-209.91667347,0.00018521,2]
[365369335,1749621051180,-2512.63,0.00018575,2]
[365369336,1749621051189,-599.66,0.00018575,2]
[365369337,1749621051199,-2291.25,0.00018575,2]
[365369338,1749621051209,-209.91667347,0.0001859,2]
[365369339,1749621051218,-209.91667347,0.00018659,2]
[365369340,1749621051229,-715.49769219,0.00018713,2]
[365369341,1749621051238,-209.91667347,0.00018728,2]
[365369342,1749621051247,-2512.63,0.00018739,2]
[365369343,1749621051257,-599.66,0.00018739,2]
[365369344,1749621051267,-2291.25,0.00018739,2]
[365369345,1749621051277,-209.91667347,0.00018797,2]
[365369346,1749621051287,-1000.0,0.000188,2]
[365369347,1749621051297,-858.68829218,0.00018841,2]
[365369348,1749621051306,-209.91667347,0.00018866,2]
[365369349,1749621051316,-204.0,0.00018875,5]
[365369350,1749621051325,-506.04938949,0.00018903,2]
[365369351,1749621051335,-500.0,0.00018903,2]
[365369352,1749621051344,-2512.63,0.00018904,2]
[365369353,1749621051354,-599.66,0.00018904,2]
[365369354,1749621051364,-2291.25,0.00018904,2]
[365369355,1749621051374,-500.0,0.00018904,2]
[365369356,1749621051383,-209.91667347,0.00018934,2]
[365369357,1749621051394,-1957.856,0.00018953,2]
[365369358,1749621051405,-151.0,0.00018953,2]
[365369359,1749621051414,-207.4,0.00018953,2]
[365369360,1749621051424,-956.33,0.00018999,2]
[365369361,1749621051434,-85492.7,0.00019,2]
[365369362,1749621051443,-250.0,0.00019,2]
[365369363,1749621051453,-209.91667347,0.00019003,2]
[365369364,1749621051463,-500.0,0.00019007,2]
[365369365,1749621051472,-504.57871282,0.00019007,2]
[365369366,1749621051482,-242.14400002,0.00019008,2]
[365369367,1749621051491,-858.68829218,0.00019021,2]
[365369368,1749621051501,-922.36,0.00019041,2]
[365369369,1749621051510,-461.18,0.00019041,2]
[365369370,1749621051520,-2512.63,0.00019068,2]
[365369371,1749621051529,-599.66,0.00019068,2]
[365369372,1749621051539,-2291.25,0.00019068,2]
[365369373,1749621051549,-209.91667347,0.00019072,2]
[365369374,1749621051559,-735.66,0.000191,2]
[365369375,1749621051568,-715.49769219,0.00019108,2]
[365369376,1749621051578,-209.91667347,0.00019141,2]
[365369377,1749621051588,-152.0,0.00019176,5]
[365369378,1749621051598,-392.94190492,0.00019178,2]
[365369379,1749621051608,-150.53,0.00019178,2]
[365369380,1749621051618,-1163.78,0.00019178,2]
[365369381,1749621051628,-150.0,0.00019178,2]
[365369382,1749621051638,-1163.78,0.00019178,2]
[365369383,1749621051647,-1163.21,0.00019178,2]
[365369384,1749621051656,-407.51,0.00019178,2]
[365369385,1749621051666,-300.79,0.00019178,2]
[365369386,1749621051675,-170.71,0.00019178,2]
[365369387,1749621051684,-170.71,0.00019178,2]
[365369388,1749621051694,-169.36,0.00019178,2]
[365369389,1749621051703,-186.3,0.000192,4]
[365369390,1749621051712,-209.91667347,0.0001921,2]
[365369391,1749621051722,-2512.63,0.00019232,2]
[365369392,1749621051732,-599.66,0.00019232,2]
[365369393,1749621051742,-2291.25,0.00019232,2]
[365369394,1749621051752,-411.45366722,0.00019249,2]
[365369395,1749621051762,-500.0,0.00019276,2]
[365369396,1749621051771,-500.0,0.00019276,2]
[365369397,1749621051781,-209.91667347,0.00019279,2]
[365369398,1749621051791,-500.0,0.00019284,2]
[365369399,1749621051800,-500.0,0.00019284,2]
[365369400,1749621051810,-201.93985216,0.00019284,2]
[365369401,1749621051821,-571.41644199,0.00019284,2]
[365369402,1749621051831,-507.48979399,0.00019292,2]
[365369403,1749621051840,-500.01231118,0.00019292,2]
[365369404,1749621051850,-209.91667347,0.00019348,2]
[365369405,1749621051860,-587.0,0.00019366,2]
[365369406,1749621051870,-2512.63,0.00019397,2]
[365369407,1749621051879,-599.66,0.00019397,2]
[365369408,1749621051890,-2291.25,0.00019397,2]
[365369409,1749621051899,-88442.0029532,0.000194,2]
[365369410,1749621051909,-209.91667347,0.00019417,2]
[365369411,1749621051919,-168.94965726,0.00019425,2]
[365369412,1749621051930,-209.91667347,0.00019486,2]
[365369413,1749621051946,-6994.90633892,0.000195,2]
[365369414,1749621051956,-715.49769219,0.00019504,2]
[365369415,1749621051966,-200.0,0.0001951,2]
[365369416,1749621051977,-209.91667347,0.00019555,2]
[365369417,1749621051986,-2512.63,0.00019561,2]
[365369418,1749621051997,-1200.0,0.00019561,2]
[365369419,1749621052008,-599.66,0.00019561,2]
[365369420,1749621052019,-2291.25,0.00019561,2]
[365369421,1749621052029,-500.0,0.00019599,2]
[365369422,1749621052040,-20260.0,0.000196,2]
[365369423,1749621052051,-165.23,0.00019613,2]
[365369424,1749621052060,-153.2,0.00019621,2]
[365369425,1749621052070,-209.91667347,0.00019624,2]
[365369426,1749621052081,-169.79356886,0.00019625,2]
[365369427,1749621052091,-687.556,0.00019638,2]
[365369428,1749621052101,-209.91667347,0.00019693,2]
[365369429,1749621052111,-4413.72,0.000197,2]
[365369430,1749621052122,-169.79356886,0.00019717,2]
[365369431,1749621052131,-1000.0,0.00019725,2]
[365369432,1749621052140,-1000.0,0.00019725,2]
[365369433,1749621052150,-1000.0,0.00019725,2]
[365369434,1749621052160,-1000.0,0.00019725,2]
[365369435,1749621052170,-1000.0,0.00019725,2]
[365369436,1749621052180,-1000.0,0.00019725,2]
[365369437,1749621052190,-528.33501685,0.00019725,2]
[365369438,1749621052203,-471.66498315,0.00019725,2]
[365369439,1749621052213,-1000.0,0.00019725,2]
[365369440,1749621052223,-1000.0,0.00019725,2]
[365369441,1749621052234,-1000.0,0.00019725,2]
[365369442,1749621052243,-1000.0,0.00019725,2]
[365369443,1749621052253,-1000.0,0.00019725,2]
[365369444,1749621052263,-1000.0,0.00019725,2]
[365369445,1749621052272,-1000.0,0.00019725,2]
[365369446,1749621052282,-1000.0,0.00019725,2]
[365369447,1749621052292,-1000.0,0.00019725,2]
[365369448,1749621052302,-519.51178416,0.00019725,2]
[365369449,1749621052312,-150.0,0.00019725,2]
[365369450,1749621052322,-500.0,0.00019725,2]
[365369451,1749621052331,-2512.63,0.00019726,2]
[365369452,1749621052341,-599.66,0.00019726,2]
[365369453,1749621052352,-2291.25,0.00019726,2]
[365369454,1749621052362,-884.0,0.00019755,2]
[365369455,1749621052372,-158.34,0.00019755,2]
[365369456,1749621052382,-150.082,0.00019755,2]
[365369457,1749621052392,-209.91667347,0.00019762,2]
[365369458,1749621052402,-161.42499914,0.000198,2]
[365369459,1749621052412,-1000.0,0.000198,2]
[365369460,1749621052422,-169.79356886,0.00019808,2]
[365369461,1749621052432,-200.0,0.0001981,2]
[365369462,1749621052443,-1000.0,0.00019824,2]
[365369463,1749621052453,-1032.49131925,0.00019824,2]
[365369464,1749621052464,-1000.0,0.00019827,2]
[365369465,1749621052474,-65564.71098961,0.00019827,2]
[365369466,1749621052514,-490.0,0.00016438,2]
[365369467,1749621052524,-4760.1482,0.00019827,2]
[365369468,1749621052537,-109393.74,0.00019827,2]
[365369469,1749621052557,-32860.24524216,0.00019827,2]
[365369470,1749621052567,-209.91667347,0.00019831,2]
[365369471,1749621052577,-5800.0,0.00019835,2]
[365369472,1749621052587,-500.0,0.00019839,2]
[365369473,1749621052597,-500.0,0.0001984,2]
[365369474,1749621052608,-200.0,0.0001984,2]
[365369475,1749621052617,-161.42499913,0.0001985,2]
[365369476,1749621052628,-2318.85797287,0.0001987,2]
[365369477,1749621052638,-1090.5307873,0.00019874,2]
[365369478,1749621052648,-11016.18224076,0.00019889,2]
[365369479,1749621052658,-1827.87614011,0.0001989,2]
[365369480,1749621053246,-490.0,0.00016438,2]
[365369481,1749621053255,-80.093,0.00016466,2]
[365369482,1749621104022,407.26963507,0.00038326,120]
[365369483,1749621106138,1000.0,0.00038326,120]
[365369484,1749621106681,1000.0,0.00038326,120]
[365369485,1749621107217,729.40601546,0.00038326,120]
[365369486,1749621162078,204.0,0.00015133,2]
[365369487,1749621257942,2723.0,0.00038329,120]
[365369488,1749621259806,547.17,0.00024658,120]
[365369489,1749621275357,1000.0,0.000246,120]
[365369490,1749621279765,1341.82,0.00015693,2]
[365369492,1749621281547,204.0,0.00015133,2]
[365369493,1749621295393,707.9678973,0.00038329,120]
[365369494,1749621304468,1333.0,0.00024065,120]
[365369495,1749621323679,1507.34565564,0.00038329,60]
[365369496,1749621347530,974.9,0.00015744,2]
[365369497,1749621405760,4578.37192349,0.00038329,60]
[365369498,1749621459093,250.0,0.00015543,2]
[365369501,1749621497650,312.12,0.0001546,2]
[365369502,1749621521324,204.0,0.00015629,2]
[365369503,1749621557796,211.42,0.00015455,2]
[365369504,1749621605269,658.50406551,0.00038329,60]
[365369505,1749621671831,400000.0,0.00038329,60]
[365369506,1749621781752,40000.0,0.0003831,60]
[365369507,1749621782888,666.0,0.00015414,2]
[365369508,1749621806775,8891.3541183,0.0003831,60]
[365369509,1749621830789,150.0,0.00015451,7]
[365369510,1749621837520,535.04,0.00013534,2]
[365369511,1749621837844,535.04,0.00015798,2]
[365369512,1749621952511,221.618411,0.00015983,2]
[365369513,1749622005256,1000.0,0.00015398,2]
[365369514,1749622038138,-162.371147,0.00016064,2]
[365369515,1749622038161,-152.481,0.00016064,2]
[365369516,1749622038182,-250.0,0.00016114,2]
[365369517,1749622038205,-204.0,0.00016159,2]
[365369518,1749622038226,-144.65993856,0.00016164,2]
[365369519,1749622039121,-188.59775654,0.00016164,2]
[365369520,1749622041094,-166.7423049,0.00016164,2]
[365369521,1749622041115,-158.82636993,0.00016164,4]
[365369522,1749622043086,-441.17363007,0.00016164,4]
[365369523,1749622043108,-76.91543618,0.00016164,2]
[365369524,1749622068817,1000.0,0.00038245,60]
[365369525,1749622088152,1333.0,0.00024373,120]
[365369526,1749622170176,-159.7814022,0.00016164,2]
[365369527,1749622170197,-235.06353649,0.00016164,2]
[365369528,1749622170218,-500.0,0.00016164,2]
[365369529,1749622170238,-152.81,0.00016164,2]
[365369530,1749622170259,-151.93,0.00016164,2]
[365369531,1749622170285,-151.6,0.00016164,2]
[365369532,1749622170305,-150.04,0.00016164,2]
[365369533,1749622170326,-150.51,0.00016164,2]
[365369534,1749622170347,-1200.0,0.00016178,2]
[365369535,1749622170370,-205.79398975,0.0001618,2]
[365369536,1749622204551,165.23,0.0001587,2]
[365369537,1749622214222,69166.73403367,0.00038245,60]
[365369549,1749622231592,-94.20601025,0.0001618,2]
[365369550,1749622231602,-491.43,0.00016269,2]
[365369551,1749622231611,-305.6,0.0001627,2]
[365369552,1749622231624,-490.69,0.00016286,2]
[365369553,1749622231634,-499.36,0.00016286,2]
[365369554,1749622231644,-495.03,0.00016286,2]
[365369555,1749622231653,-302.1,0.00016288,2]
[365369556,1749622231663,-499.89,0.00016304,2]
[365369557,1749622231672,-497.18,0.00016306,2]
[365369558,1749622231682,-497.62,0.00016306,2]
[365369559,1749622231691,-301.42,0.00016309,2]
[365369560,1749622231701,-499.53,0.00016328,2]
[365369561,1749622231710,-504.51,0.00016328,2]
[365369562,1749622231719,-300.0,0.00016337,2]
[365369563,1749622231728,-1200.0,0.00016337,2]
[365369564,1749622231737,-163.16320972,0.00016338,2]
[365369565,1749622231746,-536.40496183,0.00016338,2]
[365369566,1749622231755,-150.9049535,0.00016338,2]
[365369567,1749622231764,-11337.12676981,0.00016338,2]
[365369568,1749622231773,-500.0,0.00016338,2]